[Event "EYCC Girls-U14 2019"]
[Site "Bratislava"]
[Date "2019.08.09"]
[Round "8.21"]
[White "Mroz, Lena"]
[Black "Kralj, Nika"]
[Result "1-0"]
[ECO "B09"]
[WhiteElo "1587"]
[BlackElo "1807"]
[Annotator "NA"]
[PlyCount "65"]
[EventDate "2019.08.02"]
[EventType "swiss"]
[EventCountry "SVK"]
[SourceTitle "playchess.com"]
[Source "ChessBase"]
[SourceQuality "1"]
[TimeControl "40/5400+30:1800+30"]

1. e4 {[%emt 0:00:00]} g6 {[%emt 0:00:00]} 2. d4 {[%emt 0:00:00]} d6 {[%emt 0:00:00]} 3. Nc3 {[%emt 0:00:00]} Bg7 {[%emt 0:00:00]} 4. f4 {[%emt 0:00:10]} Nf6 {[%emt 0:00:03]} 5. Nf3 {[%emt 0:00:13]} O-O {[%emt 0:00:20]} 6. e5 {[%emt 0:00:12]} dxe5 {[%emt 0:01:40]} 7. fxe5 {[%emt 0:00:17]} Ng4 {[%emt 0:21:57]} 8. h3 {[%emt 0:02:33]} Nh6 {[%emt 0:00:06]} 9. Bf4 {[%emt 0:08:10]} f6 {[%emt 0:07:03]} 10. Bc4+ {[%emt 0:09:28]} Nf7 {[%emt 0:00:11]} 11. Qd2 {[%emt 0:02:17]} Nc6 {[%emt 0:09:08]} 12. exf6 {[%emt 0:11:48]} exf6 {[%emt 0:00:39]} 13. O-O-O {[%emt 0:01:11]} Na5 {[%emt 0:06:40]} 14. Bxf7+ {[%emt 0:06:47]} Rxf7 {[%emt 0:00:23]} 15. g4 {[%emt 0:03:40]} Nc4 {[%emt 0:00:27]} 16. Qe2 {[%emt 0:02:09]} Nd6 {[%emt 0:02:09]} 17. g5 {[%emt 0:02:02]} fxg5 {[%emt 0:05:11]} 18. Bxg5 {[%emt 0:00:39]} Qf8 {[%emt 0:00:35]} 19. Ne5 {[%emt 0:03:59]} Rf2 {[%emt 0:01:36]} 20. Qe3 {[%emt 0:14:53]} c6 {[%emt 0:08:45]} 21. h4 {[%emt 0:02:02]} Rf5 {[%emt 0:10:57]} 22. Kb1 {[%emt 0:10:37]} Nf7 {[%emt 0:05:28]} 23. Nxf7 {[%emt 0:04:07]} Rxf7 {[%emt 0:02:15]} 24. Qg3 {[%emt 0:06:17]} Rf3 {[%emt 0:00:49]} 25. Qg1 {[%emt 0:01:43]} Bh3 {[%emt 0:08:01]} 26. Ne4 {[%emt 0:03:25]} Re8 {[%emt 0:03:16]} 27. Nd2 {[%emt 0:00:49]} h6 {[%emt 0:05:05]} 28. Nxf3 {[%emt 0:00:26]} Qxf3 {[%emt 0:00:02]} 29. Rd3 {[%emt 0:01:00]} Bxd4 {[%emt 0:01:05]} 30. Rxf3 {[%emt 0:01:31]} Bxg1 {[%emt 0:00:07]} 31. Rxg1 {[%emt 0:00:27]} Bg4 {[%emt 0:00:38]} 32. Rxg4 {[%emt 0:00:10]} hxg5 {[%emt 0:00:06]} 33. b3 {[%emt 0:00:18]} 1-0

[Event "EYCC Girls-U14 2019"]
[Site "Bratislava"]
[Date "2019.08.09"]
[Round "8.22"]
[White "Toncheva, Nadya"]
[Black "Karavitaki, Evaggelia"]
[Result "1/2-1/2"]
[ECO "B22"]
[WhiteElo "2087"]
[BlackElo "1681"]
[Annotator "NA"]
[PlyCount "69"]
[EventDate "2019.08.02"]
[EventType "swiss"]
[EventCountry "SVK"]
[SourceTitle "playchess.com"]
[Source "ChessBase"]
[SourceQuality "1"]
[TimeControl "40/5400+30:1800+30"]

1. e4 {[%emt 0:00:00]} c5 {[%emt 0:00:00]} 2. c3 {[%emt 0:00:00]} d5 {[%emt 0:07:32]} 3. exd5 {[%emt 0:00:00]} Qxd5 {[%emt 0:00:10]} 4. d4 {[%emt 0:00:00]} e6 {[%emt 0:06:16]} 5. Na3 {[%emt 0:00:00]} Qd8 {[%emt 0:01:54]} 6. Nf3 {[%emt 0:00:52]} Nc6 {[%emt 0:02:51]} 7. Bf4 {[%emt 0:01:10]} Nf6 {[%emt 0:07:02]} 8. dxc5 {[%emt 0:00:01]} Bxc5 {[%emt 0:18:00]} 9. Qxd8+ {[%emt 0:00:04]} Kxd8 {[%emt 0:00:18]} 10. Nb5 {[%emt 0:01:26]} Nd5 {[%emt 0:07:24]} 11. Rd1 {[%emt 0:00:03]} Ke7 {[%emt 0:01:19]} 12. Rxd5 {[%emt 0:00:03]} exd5 {[%emt 0:00:13]} 13. Nc7 {[%emt 0:00:02]} Be6 {[%emt 0:02:44]} 14. Nxa8 {[%emt 0:00:03]} Rxa8 {[%emt 0:00:14]} 15. b4 {[%emt 0:04:01]} Bd6 {[%emt 0:05:15]} 16. Bxd6+ {[%emt 0:00:11]} Kxd6 {[%emt 0:00:02]} 17. Bd3 {[%emt 0:00:51]} d4 {[%emt 0:08:27]} 18. Nxd4 {[%emt 0:00:02]} Nxd4 {[%emt 0:01:26]} 19. cxd4 {[%emt 0:00:03]} Bxa2 {[%emt 0:01:53]} 20. Kd2 {[%emt 0:00:02]} Bd5 {[%emt 0:08:43]} 21. Ra1 {[%emt 0:00:10]} a6 {[%emt 0:01:02]} 22. g3 {[%emt 0:01:44]} h6 {[%emt 0:01:35]} 23. Ra5 {[%emt 0:02:12]} Rd8 {[%emt 0:03:01]} 24. f4 {[%emt 0:01:24]} Ke7 {[%emt 0:05:21]} 25. Ke3 {[%emt 0:00:42]} Kd6 {[%emt 0:01:56]} 26. f5 {[%emt 0:07:54]} Re8+ {[%emt 0:00:52]} 27. Kf4 {[%emt 0:00:04]} Re1 {[%emt 0:01:46]} 28. Rc5 {[%emt 0:12:09]} Rd1 {[%emt 0:03:09]} 29. Ke3 {[%emt 0:02:30]} Re1+ {[%emt 0:00:57]} 30. Kf2 {[%emt 0:01:43]} Rh1 {[%emt 0:01:17]} 31. h4 {[%emt 0:00:04]} Rh2+ {[%emt 0:00:45]} 32. Ke3 {[%emt 0:00:04]} Rb2 {[%emt 0:00:42]} 33. b5 {[%emt 0:02:23]} axb5 {[%emt 0:00:53]} 34. Rxb5 {[%emt 0:05:28]} Rxb5 {[%emt 0:00:59]} 35. Bxb5 {[%emt 0:00:02]} 1/2-1/2

[Event "EYCC Girls-U14 2019"]
[Site "Bratislava"]
[Date "2019.08.09"]
[Round "8.23"]
[White "Sevcikova, Lucia"]
[Black "Puia, Alexia-Teodora"]
[Result "1-0"]
[ECO "B48"]
[WhiteElo "1800"]
[BlackElo "1601"]
[Annotator "NA"]
[PlyCount "75"]
[EventDate "2019.08.02"]
[EventType "swiss"]
[EventCountry "SVK"]
[SourceTitle "playchess.com"]
[Source "ChessBase"]
[SourceQuality "1"]
[TimeControl "40/5400+30:1800+30"]

1. e4 {[%emt 0:00:00]} c5 {[%emt 0:00:00]} 2. Nf3 {[%emt 0:00:00]} e6 {[%emt 0:00:00]} 3. d4 {[%emt 0:00:00]} cxd4 {[%emt 0:00:00]} 4. Nxd4 {[%emt 0:00:08]} Nc6 {[%emt 0:00:00]} 5. Nc3 {[%emt 0:00:41]} Qc7 {[%emt 0:00:00]} 6. Be3 {[%emt 0:00:12]} a6 {[%emt 0:00:05]} 7. Qd2 {[%emt 0:02:16]} Nf6 {[%emt 0:00:30]} 8. O-O-O {[%emt 0:01:24]} Bb4 {[%emt 0:00:08]} 9. f3 {[%emt 0:01:17]} Ne5 {[%emt 0:00:55]} 10. Nb3 {[%emt 0:12:47]} b5 {[%emt 0:00:59]} 11. Bf4 {[%emt 0:10:19]} Nh5 {[%emt 0:05:36]} 12. Bxe5 {[%emt 0:02:02]} Qxe5 {[%emt 0:00:08]} 13. Qd4 {[%emt 0:00:41]} Bxc3 {[%emt 0:08:43]} 14. Qxc3 {[%emt 0:03:29]} Qxc3 {[%emt 0:00:40]} 15. bxc3 {[%emt 0:00:05]} Bb7 {[%emt 0:08:07]} 16. Na5 {[%emt 0:01:32]} Bc6 {[%emt 0:01:42]} 17. Nxc6 {[%emt 0:02:17]} dxc6 {[%emt 0:00:05]} 18. g3 {[%emt 0:02:42]} Ke7 {[%emt 0:04:12]} 19. e5 {[%emt 0:03:22]} Rhd8 {[%emt 0:03:14]} 20. Bg2 {[%emt 0:00:54]} Rd5 {[%emt 0:07:21]} 21. f4 {[%emt 0:03:22]} Rc5 {[%emt 0:00:06]} 22. Rd3 {[%emt 0:00:31]} Rd8 {[%emt 0:06:46]} 23. Kb2 {[%emt 0:02:31]} g5 {[%emt 0:02:59]} 24. Bf3 {[%emt 0:06:30]} Ng7 {[%emt 0:00:25]} 25. Rhd1 {[%emt 0:00:43]} Rxd3 {[%emt 0:01:50]} 26. cxd3 {[%emt 0:00:05]} gxf4 {[%emt 0:01:15]} 27. gxf4 {[%emt 0:00:04]} f6 {[%emt 0:08:52]} 28. d4 {[%emt 0:01:51]} Rc4 {[%emt 0:00:07]} 29. Be2 {[%emt 0:01:54]} Ra4 {[%emt 0:00:08]} 30. Rg1 {[%emt 0:02:54]} Ne8 {[%emt 0:03:52]} 31. Bd1 {[%emt 0:01:16]} Ra5 {[%emt 0:00:06]} 32. Bb3 {[%emt 0:01:30]} fxe5 {[%emt 0:02:54]} 33. dxe5 {[%emt 0:05:32]} Kf7 {[%emt 0:09:58]} 34. f5 {[%emt 0:02:28]} Nc7 {[%emt 0:00:09]} 35. f6 {[%emt 0:01:52]} Ne8 {[%emt 0:01:41]} 36. Rd1 {[%emt 0:00:27]} b4 {[%emt 0:00:31]} 37. Rd7+ {[%emt 0:03:42]} Kg6 {[%emt 0:03:29]} 38. f7 {[%emt 0:01:14]} 1-0

[Event "EYCC Girls-U14 2019"]
[Site "Bratislava"]
[Date "2019.08.09"]
[Round "8.24"]
[White "Alekseenko, Mariya"]
[Black "Eraslan, Yagmur"]
[Result "1-0"]
[ECO "A12"]
[WhiteElo "1848"]
[BlackElo "1651"]
[Annotator "NA"]
[PlyCount "115"]
[EventDate "2019.08.02"]
[EventType "swiss"]
[EventCountry "SVK"]
[SourceTitle "playchess.com"]
[Source "ChessBase"]
[SourceQuality "1"]
[TimeControl "40/5400+30:1800+30"]

1. c4 {[%emt 0:00:00]} c6 {[%emt 0:00:00]} 2. Nf3 {[%emt 0:00:00]} d5 {[%emt 0:00:00]} 3. b3 {[%emt 0:00:00]} Nf6 {[%emt 0:00:02]} 4. Bb2 {[%emt 0:00:00]} Bg4 {[%emt 0:00:53]} 5. Ne5 {[%emt 0:02:47]} Bf5 {[%emt 0:00:45]} 6. d3 {[%emt 0:01:08]} g6 {[%emt 0:05:46]} 7. Nd2 {[%emt 0:05:02]} Bg7 {[%emt 0:04:48]} 8. Qc2 {[%emt 0:00:20]} O-O {[%emt 0:04:01]} 9. g3 {[%emt 0:07:32]} Nfd7 {[%emt 0:11:21]} 10. Nef3 {[%emt 0:05:27]} e5 {[%emt 0:04:12]} 11. e4 {[%emt 0:03:49]} dxe4 {[%emt 0:00:57]} 12. dxe4 {[%emt 0:00:06]} Bg4 {[%emt 0:00:11]} 13. h3 {[%emt 0:05:00]} Bxf3 {[%emt 0:04:32]} 14. Nxf3 {[%emt 0:00:12]} Qc7 {[%emt 0:03:34]} 15. Bg2 {[%emt 0:00:43]} Nc5 {[%emt 0:03:30]} 16. O-O {[%emt 0:01:19]} Ne6 {[%emt 0:02:36]} 17. Rad1 {[%emt 0:01:21]} Nd7 {[%emt 0:06:08]} 18. b4 {[%emt 0:08:13]} a5 {[%emt 0:04:04]} 19. a3 {[%emt 0:00:44]} c5 {[%emt 0:02:10]} 20. bxa5 {[%emt 0:08:49]} Rxa5 {[%emt 0:03:04]} 21. Nd2 {[%emt 0:14:35]} Nd4 {[%emt 0:04:09]} 22. Qd3 {[%emt 0:00:31]} Nb8 {[%emt 0:05:15]} 23. Nb1 {[%emt 0:07:11]} Nbc6 {[%emt 0:11:11]} 24. Nc3 {[%emt 0:00:47]} Rb8 {[%emt 0:00:37]} 25. f4 {[%emt 0:08:05]} b5 {[%emt 0:02:34]} 26. cxb5 {[%emt 0:01:38]} Nxb5 {[%emt 0:00:24]} 27. Nd5 {[%emt 0:02:16]} Qd8 {[%emt 0:01:23]} 28. fxe5 {[%emt 0:10:32]} Nxe5 {[%emt 0:01:49]} 29. Qe2 {[%emt 0:02:31]} Qf8 {[%emt 0:04:47]} 30. Qf2 {[%emt 0:01:38]} Ra6 {[%emt 0:01:31]} 31. a4 {[%emt 0:01:06]} Nd6 {[%emt 0:04:01]} 32. Ba1 {[%emt 0:00:18]} Ndc4 {[%emt 0:00:13]} 33. g4 {[%emt 0:01:28]} h6 {[%emt 0:01:26]} 34. Kh1 {[%emt 0:00:21]} Rc8 {[%emt 0:02:07]} 35. Qg3 {[%emt 0:01:01]} Qe8 {[%emt 0:01:38]} 36. g5 {[%emt 0:00:23]} Re6 {[%emt 0:01:11]} 37. gxh6 {[%emt 0:00:20]} Bh8 {[%emt 0:00:23]} 38. Qh4 {[%emt 0:00:42]} Kh7 {[%emt 0:00:35]} 39. Rf2 {[%emt 0:00:19]} Nd7 {[%emt 0:00:56]} 40. Rdf1 {[%emt 0:00:00]} Nce5 {[%emt 0:00:00]} 41. a5 {[%emt 0:02:23]} Qf8 {[%emt 0:03:22]} 42. Nb6 {[%emt 0:03:39]} Rc7 {[%emt 0:02:37]} 43. Nd5 {[%emt 0:01:41]} Ra7 {[%emt 0:00:40]} 44. Bc3 {[%emt 0:00:55]} Rb7 {[%emt 0:11:53]} 45. Ba1 {[%emt 0:08:45]} Ra7 {[%emt 0:00:19]} 46. Bc3 {[%emt 0:01:39]} Rb7 {[%emt 0:00:18]} 47. Rf4 {[%emt 0:00:52]} Ra7 {[%emt 0:01:21]} 48. Qg3 {[%emt 0:02:07]} f6 {[%emt 0:01:49]} 49. h4 {[%emt 0:02:04]} Kxh6 {[%emt 0:01:28]} 50. Bh3 {[%emt 0:00:06]} Rd6 {[%emt 0:01:23]} 51. Bxd7 {[%emt 0:03:41]} Nxd7 {[%emt 0:00:16]} 52. Rg4 {[%emt 0:01:08]} Raa6 {[%emt 0:06:10]} 53. Rxg6+ {[%emt 0:00:18]} Kh7 {[%emt 0:00:13]} 54. Qg4 {[%emt 0:00:25]} Bg7 {[%emt 0:00:41]} 55. Qh5+ {[%emt 0:00:37]} Bh6 {[%emt 0:00:05]} 56. Rfg1 {[%emt 0:00:35]} Ne5 {[%emt 0:01:13]} 57. Rg8 {[%emt 0:02:50]} Qf7 {[%emt 0:01:36]} 58. Qf5+ 1-0

[Event "EYCC Girls-U14 2019"]
[Site "Bratislava"]
[Date "2019.08.10"]
[Round "9.1"]
[White "Allahverdiyeva, Ayan"]
[Black "Kirchei, Viktoriia"]
[Result "1-0"]
[ECO "C41"]
[WhiteElo "2114"]
[BlackElo "2006"]
[Annotator "NA"]
[PlyCount "67"]
[EventDate "2019.08.02"]
[EventType "swiss"]
[EventCountry "SVK"]
[SourceTitle "playchess.com"]
[Source "ChessBase"]
[SourceQuality "1"]
[TimeControl "40/5400+30:1800+30"]

1. e4 {[%emt 0:00:40]} d6 {[%emt 0:00:00]} 2. d4 {[%emt 0:04:21]} Nf6 {[%emt 0:00:00]} 3. Nc3 {[%emt 0:00:05]} e5 {[%emt 0:00:09]} 4. Nf3 {[%emt 0:00:24]} Nbd7 {[%emt 0:00:08]} 5. Bc4 {[%emt 0:01:53]} Be7 {[%emt 0:00:23]} 6. O-O {[%emt 0:01:03]} O-O {[%emt 0:00:11]} 7. a4 {[%emt 0:00:42]} a5 {[%emt 0:00:39]} 8. Re1 {[%emt 0:03:45]} c6 {[%emt 0:00:49]} 9. Bb3 {[%emt 0:07:05]} Rb8 {[%emt 0:22:29]} 10. Bg5 {[%emt 0:09:17]} h6 {[%emt 0:00:25]} 11. Bh4 {[%emt 0:01:17]} Nh5 {[%emt 0:09:43]} 12. Bxe7 {[%emt 0:05:19]} Qxe7 {[%emt 0:00:05]} 13. Nxe5 {[%emt 0:00:08]} dxe5 {[%emt 0:03:17]} 14. Qxh5 {[%emt 0:00:04]} exd4 {[%emt 0:00:10]} 15. Ne2 {[%emt 0:00:24]} Ne5 {[%emt 0:10:53]} 16. Nxd4 {[%emt 0:10:25]} Bg4 {[%emt 0:00:15]} 17. Nf5 {[%emt 0:00:04]} Qc5 {[%emt 0:14:49]} 18. Qh4 {[%emt 0:00:44]} Rbd8 {[%emt 0:02:25]} 19. h3 {[%emt 0:03:35]} Bxf5 {[%emt 0:00:54]} 20. exf5 {[%emt 0:00:02]} Nd7 {[%emt 0:04:10]} 21. g4 {[%emt 0:19:09]} Ne5 {[%emt 0:01:32]} 22. Qg3 {[%emt 0:00:12]} Rfe8 {[%emt 0:00:15]} 23. Re4 {[%emt 0:02:45]} Nd7 {[%emt 0:10:10]} 24. Rae1 {[%emt 0:02:37]} Rxe4 {[%emt 0:00:14]} 25. Rxe4 {[%emt 0:00:05]} Nf6 {[%emt 0:00:16]} 26. Re2 {[%emt 0:03:26]} Nd5 {[%emt 0:05:11]} 27. Qe5 {[%emt 0:03:57]} Kh7 {[%emt 0:03:39]} 28. f6 {[%emt 0:01:34]} gxf6 {[%emt 0:00:38]} 29. Qf5+ {[%emt 0:00:15]} Kg7 {[%emt 0:00:06]} 30. c4 {[%emt 0:00:18]} Qb4 {[%emt 0:00:28]} 31. Bc2 {[%emt 0:00:07]} Ne7 {[%emt 0:02:36]} 32. Rxe7 {[%emt 0:00:10]} Rd1+ {[%emt 0:00:40]} 33. Kg2 {[%emt 0:01:44]} Kf8 {[%emt 0:00:06]} 34. Qxf6 {[%emt 0:00:23]} 1-0

[Event "EYCC Girls-U14 2019"]
[Site "Bratislava"]
[Date "2019.08.10"]
[Round "9.2"]
[White "Nur-Mukhametova, Alisa"]
[Black "Hakobyan, Astghik"]
[Result "1-0"]
[ECO "A30"]
[WhiteElo "2126"]
[BlackElo "1863"]
[Annotator "NA"]
[PlyCount "110"]
[EventDate "2019.08.02"]
[EventType "swiss"]
[EventCountry "SVK"]
[SourceTitle "playchess.com"]
[Source "ChessBase"]
[SourceQuality "1"]
[TimeControl "40/5400+30:1800+30"]

1. Nf3 {[%emt 0:00:00]} Nf6 {[%emt 0:00:00]} 2. g3 {[%emt 0:00:00]} b6 {[%emt 0:00:08]} 3. Bg2 {[%emt 0:00:00]} Bb7 {[%emt 0:00:05]} 4. O-O {[%emt 0:00:01]} e6 {[%emt 0:00:10]} 5. c4 {[%emt 0:00:05]} c5 {[%emt 0:00:48]} 6. Nc3 {[%emt 0:04:37]} Be7 {[%emt 0:00:26]} 7. b3 {[%emt 0:10:11]} O-O {[%emt 0:00:10]} 8. Bb2 {[%emt 0:00:55]} d5 {[%emt 0:03:11]} 9. e3 {[%emt 0:00:55]} Nbd7 {[%emt 0:03:37]} 10. Qe2 {[%emt 0:09:33]} Rc8 {[%emt 0:01:35]} 11. cxd5 {[%emt 0:06:04]} exd5 {[%emt 0:01:07]} 12. d4 {[%emt 0:00:22]} Re8 {[%emt 0:02:43]} 13. Rfd1 {[%emt 0:00:39]} c4 {[%emt 0:02:54]} 14. Ne5 {[%emt 0:03:58]} cxb3 {[%emt 0:13:13]} 15. axb3 {[%emt 0:01:06]} a6 {[%emt 0:00:43]} 16. Nd3 {[%emt 0:08:29]} Nf8 {[%emt 0:02:56]} 17. Qd2 {[%emt 0:10:42]} Ng6 {[%emt 0:04:58]} 18. Rdc1 {[%emt 0:04:04]} Bd6 {[%emt 0:09:46]} 19. Ba3 {[%emt 0:04:59]} h5 {[%emt 0:14:19]} 20. Bxd6 {[%emt 0:05:00]} Qxd6 {[%emt 0:01:02]} 21. h4 {[%emt 0:02:52]} Re7 {[%emt 0:09:32]} 22. Na4 {[%emt 0:07:53]} a5 {[%emt 0:11:58]} 23. b4 {[%emt 0:11:39]} Ne4 {[%emt 0:04:08]} 24. Qe1 {[%emt 0:01:31]} Rxc1 {[%emt 0:01:21]} 25. Rxc1 {[%emt 0:00:49]} Ba6 {[%emt 0:00:08]} 26. Bf1 {[%emt 0:03:23]} Bb5 {[%emt 0:06:57]} 27. Ndb2 {[%emt 0:02:51]} Bxf1 {[%emt 0:00:16]} 28. Kxf1 {[%emt 0:00:47]} axb4 {[%emt 0:01:32]} 29. Rc8+ {[%emt 0:00:20]} Kh7 {[%emt 0:00:01]} 30. Qe2 {[%emt 0:00:29]} Kh6 {[%emt 0:00:00]} 31. Rc1 {[%emt 0:00:43]} Re6 {[%emt 0:01:51]} 32. Nd3 {[%emt 0:00:21]} Nxg3+ {[%emt 0:02:14]} 33. fxg3 {[%emt 0:00:11]} Qxg3 {[%emt 0:00:01]} 34. Qf2 {[%emt 0:00:56]} Qh3+ {[%emt 0:01:05]} 35. Ke2 {[%emt 0:00:15]} Rf6 {[%emt 0:00:35]} 36. Qg1 {[%emt 0:00:34]} Qxh4 {[%emt 0:00:42]} 37. Rf1 Rxf1 {[%emt 0:00:42]} 38. Qxf1 {[%emt 0:00:38]} Qg4+ {[%emt 0:01:13]} 39. Qf3 {[%emt 0:00:55]} Qxf3+ {[%emt 0:00:32]} 40. Kxf3 {[%emt 0:00:00]} Nh4+ {[%emt 0:00:00]} 41. Kf2 {[%emt 0:01:11]} b5 {[%emt 0:02:39]} 42. Nb6 {[%emt 0:06:01]} b3 {[%emt 0:00:32]} 43. Nxd5 {[%emt 0:00:16]} Nf5 {[%emt 0:00:50]} 44. Nc3 {[%emt 0:02:47]} Nd6 {[%emt 0:03:02]} 45. Nd1 {[%emt 0:01:58]} g5 {[%emt 0:04:03]} 46. Nc5 {[%emt 0:01:08]} g4 {[%emt 0:02:02]} 47. Nxb3 {[%emt 0:00:36]} h4 {[%emt 0:01:57]} 48. Kg2 {[%emt 0:01:20]} h3+ {[%emt 0:01:37]} 49. Kh2 {[%emt 0:02:05]} Kg5 {[%emt 0:00:43]} 50. Nc3 {[%emt 0:04:32]} Kh4 {[%emt 0:01:36]} 51. Ne2 {[%emt 0:00:31]} Ne4 {[%emt 0:01:01]} 52. d5 {[%emt 0:01:44]} Nf6 {[%emt 0:03:30]} 53. d6 {[%emt 0:03:47]} g3+ {[%emt 0:00:09]} 54. Kg1 {[%emt 0:00:21]} Ne4 {[%emt 0:05:36]} 55. d7 {[%emt 0:01:49]} b4 1-0

[Event "EYCC Girls-U14 2019"]
[Site "Bratislava"]
[Date "2019.08.10"]
[Round "9.3"]
[White "Yakimova, Mariya"]
[Black "Zeliantsova, Kseniya"]
[Result "0-1"]
[ECO "E73"]
[WhiteElo "2250"]
[BlackElo "1907"]
[Annotator "NA"]
[PlyCount "86"]
[EventDate "2019.08.02"]
[EventType "swiss"]
[EventCountry "SVK"]
[SourceTitle "playchess.com"]
[Source "ChessBase"]
[SourceQuality "1"]
[TimeControl "40/5400+30:1800+30"]

1. d4 {[%emt 0:00:00]} Nf6 {[%emt 0:00:00]} 2. c4 {[%emt 0:00:00]} g6 {[%emt 0:00:00]} 3. Nc3 {[%emt 0:00:00]} Bg7 {[%emt 0:00:00]} 4. e4 {[%emt 0:00:00]} d6 {[%emt 0:00:00]} 5. Be2 {[%emt 0:00:00]} O-O {[%emt 0:00:48]} 6. Be3 {[%emt 0:00:00]} e5 {[%emt 0:01:41]} 7. d5 {[%emt 0:00:00]} a5 {[%emt 0:01:16]} 8. g4 {[%emt 0:00:17]} c6 {[%emt 0:04:43]} 9. g5 {[%emt 0:03:37]} Ne8 {[%emt 0:01:43]} 10. h4 {[%emt 0:03:22]} Nc7 {[%emt 0:09:16]} 11. h5 {[%emt 0:05:57]} cxd5 {[%emt 0:01:57]} 12. cxd5 {[%emt 0:00:05]} b5 {[%emt 0:05:05]} 13. Nxb5 {[%emt 0:01:03]} Nxb5 {[%emt 0:00:21]} 14. Bxb5 {[%emt 0:00:04]} Ba6 {[%emt 0:00:36]} 15. Bxa6 {[%emt 0:06:12]} Nxa6 {[%emt 0:00:11]} 16. Ne2 {[%emt 0:02:16]} Rb8 {[%emt 0:05:18]} 17. Qd2 {[%emt 0:00:53]} Nc5 {[%emt 0:04:28]} 18. Bxc5 {[%emt 0:05:33]} dxc5 {[%emt 0:00:05]} 19. Nc3 {[%emt 0:00:10]} Rb4 {[%emt 0:08:45]} 20. O-O-O {[%emt 0:02:10]} Qb6 {[%emt 0:03:58]} 21. Qe2 {[%emt 0:01:18]} Rb8 {[%emt 0:10:17]} 22. Rd2 {[%emt 0:00:06]} a4 {[%emt 0:02:43]} 23. a3 {[%emt 0:01:16]} Rb3 {[%emt 0:07:26]} 24. Rc2 {[%emt 0:00:26]} Qd8 {[%emt 0:07:11]} 25. Qg4 {[%emt 0:04:51]} Qb6 {[%emt 0:01:01]} 26. Qe2 {[%emt 0:02:47]} Qd8 {[%emt 0:00:18]} 27. Rg1 {[%emt 0:00:17]} Bf8 {[%emt 0:03:22]} 28. hxg6 {[%emt 0:00:53]} hxg6 {[%emt 0:02:50]} 29. Nxa4 {[%emt 0:03:48]} c4 {[%emt 0:00:13]} 30. Nc3 {[%emt 0:02:00]} Rxb2 {[%emt 0:01:23]} 31. Qxc4 {[%emt 0:13:55]} Bxa3 {[%emt 0:02:40]} 32. Rxb2 {[%emt 0:02:22]} Bxb2+ {[%emt 0:00:26]} 33. Kc2 {[%emt 0:02:04]} Bxc3 {[%emt 0:00:16]} 34. Kxc3 {[%emt 0:00:12]} Rc8 {[%emt 0:00:04]} 35. Rb1 {[%emt 0:00:04]} Rxc4+ {[%emt 0:00:05]} 36. Kxc4 {[%emt 0:00:02]} Qc7+ {[%emt 0:00:18]} 37. Kd3 {[%emt 0:00:03]} Qc5 {[%emt 0:00:10]} 38. Rb8+ {[%emt 0:01:25]} Kg7 {[%emt 0:00:06]} 39. f3 {[%emt 0:00:03]} Qf2 {[%emt 0:02:37]} 40. Re8 {[%emt 0:00:00]} Qxf3+ {[%emt 0:00:00]} 41. Kc4 {[%emt 0:00:22]} Qxe4+ {[%emt 0:00:15]} 42. Kc5 {[%emt 0:00:02]} Qd4+ {[%emt 0:00:06]} 43. Kd6 {[%emt 0:00:05]} Qb6+ {[%emt 0:00:37]} 0-1

[Event "EYCC Girls-U14 2019"]
[Site "Bratislava"]
[Date "2019.08.10"]
[Round "9.4"]
[White "Tsotsonava, Elene"]
[Black "Hrebenshchykova, Yelyzaveta"]
[Result "0-1"]
[ECO "B80"]
[WhiteElo "1878"]
[BlackElo "1955"]
[Annotator "NA"]
[PlyCount "120"]
[EventDate "2019.08.02"]
[EventType "swiss"]
[EventCountry "SVK"]
[SourceTitle "playchess.com"]
[Source "ChessBase"]
[SourceQuality "1"]
[TimeControl "40/5400+30:1800+30"]

1. e4 {[%emt 0:00:00]} c5 {[%emt 0:00:00]} 2. Nf3 {[%emt 0:00:00]} e6 {[%emt 0:00:00]} 3. d4 {[%emt 0:00:00]} cxd4 {[%emt 0:00:00]} 4. Nxd4 {[%emt 0:00:00]} Nf6 {[%emt 0:01:10]} 5. Nc3 {[%emt 0:00:04]} d6 {[%emt 0:00:04]} 6. Be3 {[%emt 0:00:50]} Nc6 {[%emt 0:02:01]} 7. Be2 {[%emt 0:02:26]} Be7 {[%emt 0:05:23]} 8. O-O {[%emt 0:02:24]} O-O {[%emt 0:01:06]} 9. Nb3 {[%emt 0:02:03]} a6 {[%emt 0:10:28]} 10. a4 {[%emt 0:02:48]} b6 {[%emt 0:01:56]} 11. f4 {[%emt 0:08:35]} Qc7 {[%emt 0:03:45]} 12. Bf3 {[%emt 0:01:35]} Rb8 {[%emt 0:05:29]} 13. Qe2 {[%emt 0:08:51]} Na5 {[%emt 0:02:31]} 14. Nxa5 {[%emt 0:09:40]} bxa5 {[%emt 0:00:05]} 15. Rab1 {[%emt 0:00:09]} Rb4 {[%emt 0:03:00]} 16. Kh1 {[%emt 0:04:07]} Bd7 {[%emt 0:17:11]} 17. Bd2 {[%emt 0:09:01]} Bxa4 {[%emt 0:04:17]} 18. Qxa6 {[%emt 0:17:50]} Bd7 {[%emt 0:13:46]} 19. Qe2 {[%emt 0:01:42]} e5 {[%emt 0:03:31]} 20. b3 {[%emt 0:14:12]} Rd4 {[%emt 0:08:36]} 21. fxe5 {[%emt 0:04:03]} dxe5 {[%emt 0:00:16]} 22. Nd5 {[%emt 0:01:32]} Nxd5 {[%emt 0:00:15]} 23. exd5 {[%emt 0:00:07]} Qxc2 {[%emt 0:05:38]} 24. Bxa5 {[%emt 0:02:03]} Qxe2 {[%emt 0:03:44]} 25. Bxe2 {[%emt 0:00:06]} Rxd5 {[%emt 0:00:02]} 26. Bc3 {[%emt 0:01:06]} Bb5 {[%emt 0:01:24]} 27. Bc4 {[%emt 0:02:46]} Bxc4 {[%emt 0:01:19]} 28. bxc4 {[%emt 0:00:02]} Rc5 {[%emt 0:01:17]} 29. Rb7 {[%emt 0:00:36]} Bd6 {[%emt 0:02:27]} 30. Bb4 {[%emt 0:01:18]} Rc6 {[%emt 0:00:05]} 31. c5 {[%emt 0:01:05]} Bxc5 {[%emt 0:03:20]} 32. Rc1 {[%emt 0:00:10]} Rd8 {[%emt 0:00:44]} 33. h3 {[%emt 0:00:46]} Rb6 {[%emt 0:00:24]} 34. Ba5 {[%emt 0:04:06]} Rxb7 {[%emt 0:00:08]} 35. Bxd8 {[%emt 0:00:05]} Rb5 {[%emt 0:00:03]} 36. Bc7 {[%emt 0:00:29]} f6 {[%emt 0:00:19]} 37. Rd1 {[%emt 0:00:24]} Bd4 {[%emt 0:00:12]} 38. Bd6 {[%emt 0:00:13]} Kf7 {[%emt 0:00:45]} 39. Rc1 {[%emt 0:00:20]} Rb7 {[%emt 0:00:43]} 40. Ba3 {[%emt 0:00:00]} Ra7 {[%emt 0:00:00]} 41. Bb4 {[%emt 0:00:54]} Ra1 {[%emt 0:14:05]} 42. Rxa1 {[%emt 0:00:29]} Bxa1 {[%emt 0:00:03]} 43. Kh2 {[%emt 0:00:11]} f5 {[%emt 0:00:19]} 44. Kg3 {[%emt 0:00:10]} Ke6 {[%emt 0:02:27]} 45. Kf3 {[%emt 0:01:14]} e4+ {[%emt 0:00:42]} 46. Ke3 {[%emt 0:01:24]} Ke5 {[%emt 0:00:13]} 47. Bf8 {[%emt 0:00:36]} f4+ {[%emt 0:00:14]} 48. Ke2 {[%emt 0:00:06]} Kf5 {[%emt 0:00:15]} 49. Bc5 {[%emt 0:01:19]} g5 {[%emt 0:00:44]} 50. Bf2 {[%emt 0:00:52]} h5 {[%emt 0:00:54]} 51. Bc5 {[%emt 0:01:02]} g4 {[%emt 0:04:04]} 52. Bf2 {[%emt 0:01:25]} f3+ {[%emt 0:03:44]} 53. gxf3 {[%emt 0:01:51]} exf3+ {[%emt 0:01:32]} 54. Kf1 {[%emt 0:02:49]} Be5 {[%emt 0:01:10]} 55. hxg4+ {[%emt 0:01:38]} hxg4 {[%emt 0:00:05]} 56. Bc5 {[%emt 0:00:18]} g3 {[%emt 0:00:06]} 57. Bb6 {[%emt 0:01:25]} Ke4 {[%emt 0:00:07]} 58. Bg1 {[%emt 0:00:23]} Bd4 {[%emt 0:00:15]} 59. Bf2 {[%emt 0:00:05]} g2+ {[%emt 0:00:50]} 60. Kg1 {[%emt 0:00:06]} Bxf2+ {[%emt 0:00:15]} 0-1